bitfinex/quotes_SOLUSD_20251120
["timestamp","ask_amount","ask_price","bid_price","bid_amount"]
[1763652717045,8.96870475,140.28,140.25,9.78882769]
[1763652717538,1.84,140.28,140.25,9.78882769]
[1763652718169,8.96867894,140.28,140.25,9.78882769]
[1763652719070,0.71,140.27,140.21,9.78882769]
[1763652719290,0.71,140.27,140.23,12.32326026]
[1763652719803,13.03326026,140.27,140.21,10.46882769]
[1763652719961,13.03326026,140.27,140.23,9.78882769]
[1763652720274,0.1,140.28,140.26,9.78882769]
[1763652720589,0.1,140.28,140.26,22.11208795]
[1763652720989,0.71,140.27,140.23,12.32326026]
[1763652721285,12.32326026,140.24,140.18,13.00326026]
[1763652721492,12.32326026,140.2,140.15,13.00326026]
[1763652721786,1.74,140.19,140.15,13.00326026]
[1763652721984,1.74,140.19,140.16,12.32326026]
[1763652722186,8.87327078,140.19,140.16,22.79208795]
[1763652722494,1.74,140.21,140.17,13.00326026]
[1763652722792,2.45,140.21,140.16,12.32326026]
[1763652722958,12.32326026,140.2,140.15,22.11208795]
[1763652723376,13.03326026,140.2,140.15,22.79208795]
[1763652723770,0.1,140.28,140.16,0.68]
[1763652724063,0.1,140.28,140.25,12.32326026]
[1763652724279,0.1,140.28,140.26,12.32326026]
[1763652724660,0.1,140.28,140.27,13.00326026]
[1763652724897,0.1,140.28,140.27,40.91304795]
[1763652725098,0.1,140.28,140.27,28.58978769]
[1763652725270,0.1,140.28,140.27,40.91304795]
[1763652725894,0.1,140.33,140.32,22.11208795]
[1763652726061,0.1,140.33,140.32,9.78882769]
[1763652726267,0.1,140.33,140.32,22.79208795]
[1763652726680,0.1,140.33,140.32,22.11208795]
[1763652726987,7.2262049,140.33,140.31,12.32326026]
[1763652727191,0.1,140.33,140.31,12.32326026]
[1763652727495,0.1,140.33,140.32,22.79208795]
[1763652727990,0.1,140.33,140.32,42.65304795]
[1763652728190,0.1,140.33,140.32,49.77961579]
[1763652728392,0.1,140.33,140.31,12.32326026]
[1763652728579,0.1,140.33,140.3,12.32326026]
[1763652728896,7.93618891,140.33,140.3,12.32326026]
[1763652729195,7.22618891,140.33,140.3,12.32326026]
[1763652729487,0.71,140.32,140.28,9.78882769]
[1763652729687,9.67618891,140.33,140.28,22.79208795]
[1763652730000,0.1,140.33,140.31,12.32326026]
[1763652730163,0.1,140.33,140.3,22.11208795]
[1763652730359,0.1,140.33,140.32,9.78882769]
[1763652730587,0.1,140.33,140.29,9.78882769]
[1763652730788,0.1,140.33,140.31,12.32326026]
[1763652731089,0.1,140.33,140.29,10.46882769]
[1763652731394,0.1,140.33,140.31,12.32326026]
[1763652731618,0.71,140.32,140.27,2.42]
[1763652731787,7.22611966,140.33,140.29,12.32326026]
[1763652731980,0.1,140.33,140.31,22.11208795]
[1763652732390,7.22608202,140.33,140.27,20.54096]
[1763652732613,0.1,140.33,140.32,12.32326026]
[1763652732816,0.1,140.33,140.32,22.11208795]
[1763652733016,0.1,140.34,140.32,22.11208795]
[1763652733017,1e-08,140.34,140.33,9.78882769]
[1763652733182,0.1,140.4,140.33,22.79208795]
[1763652733382,0.1,140.4,140.37,22.11208795]
[1763652734221,0.1,140.4,140.37,22.79208795]
[1763652734420,0.1,140.4,140.37,31.6561173]
[1763652735422,0.1,140.4,140.39,27.90978769]
[1763652735583,0.1,140.4,140.39,9.78882769]
[1763652735791,0.1,140.4,140.39,40.23304795]
[1763652735989,0.6,140.4,140.36,27.90978769]
[1763652736193,0.6,140.4,140.38,12.32326026]
[1763652736389,0.6,140.4,140.36,27.90978769]
[1763652736390,0.6,140.4,140.39,22.11208795]
[1763652736620,0.6,140.4,140.39,22.79208795]
[1763652736792,0.2,140.46,140.4,9.78882769]
[1763652736997,0.2,140.46,140.44,12.32326026]
[1763652737505,0.2,140.46,140.43,12.32326026]
[1763652737506,0.91,140.46,140.43,12.32326026]
[1763652737681,0.91,140.46,140.42,9.78882769]
[1763652737682,8.02946702,140.46,140.42,22.11208795]
[1763652737888,12.32326026,140.44,140.35,9.78882769]
[1763652738107,12.32326026,140.44,140.38,12.32326026]
[1763652738288,7.83127456,140.43,140.39,22.11208795]
[1763652738715,0.71,140.42,140.39,22.11208795]
[1763652738913,0.71,140.42,140.36,0.68]
[1763652738914,13.03326026,140.42,140.36,9.78882769]
[1763652739116,13.03326026,140.42,140.37,12.32326026]
[1763652739311,0.71,140.41,140.37,12.32326026]
[1763652739502,9.57047873,140.44,140.4,12.32326026]
[1763652739992,0.71,140.43,140.4,12.32326026]
[1763652740406,7.83133158,140.43,140.4,12.32326026]
[1763652740819,0.71,140.43,140.4,22.11208795]
[1763652741000,0.65,140.42,140.37,12.32326026]
[1763652741187,0.65,140.42,140.34,7.78541447]
[1763652741188,0.65,140.42,140.38,22.11208795]
[1763652741394,0.65,140.44,140.41,12.32326026]
[1763652741612,0.65,140.44,140.42,9.78882769]
[1763652741818,0.65,140.44,140.42,22.11208795]
[1763652742305,7.31949526,140.46,140.39,18.12096]
[1763652742306,0.85,140.46,140.44,9.78882769]
[1763652742501,0.85,140.46,140.45,9.78882769]
[1763652742502,0.2,140.46,140.45,9.78882769]
[1763652742701,0.2,140.46,140.45,22.11208795]
[1763652743525,0.2,140.46,140.45,22.77208795]
[1763652743823,0.2,140.46,140.45,22.11208795]
[1763652744028,0.2,140.46,140.45,22.77208795]
[1763652744396,0.2,140.46,140.45,22.11208795]
[1763652744600,0.2,140.46,140.45,29.23205947]
[1763652745204,0.2,140.46,140.45,9.78882769]
[1763652745623,0.2,140.46,140.45,22.11208795]
[1763652746129,0.2,140.46,140.45,9.78882769]
[1763652746421,7.96946461,140.46,140.43,12.32326026]
[1763652746630,7.96946461,140.46,140.45,22.11208795]
[1763652746631,0.2,140.46,140.45,22.11208795]
[1763652747298,0.2,140.46,140.45,22.77208795]
[1763652747713,0.2,140.46,140.45,22.11208795]
[1763652749303,0.2,140.46,140.45,29.23205947]
[1763652749631,0.2,140.46,140.45,22.11208795]
[1763652749935,0.2,140.46,140.45,29.23205947]
[1763652750730,0.2,140.46,140.45,31.63205947]
[1763652750904,0.2,140.46,140.43,0.71209855]
[1763652751235,12.32326026,140.44,140.34,0.66]
[1763652751402,18.80096,140.45,140.38,12.32326026]
[1763652751605,12.32326026,140.43,140.38,12.32326026]
[1763652751926,12.32326026,140.41,140.35,12.32326026]
[1763652752133,1.74,140.43,140.33,12.32326026]
[1763652752134,12.32326026,140.38,140.33,12.32326026]
[1763652752348,12.32326026,140.38,140.34,9.78882769]
[1763652752499,12.32326026,140.36,140.3,7.1272812]
[1763652752699,0.68,140.35,140.31,19.45003102]
[1763652752909,12.32326026,140.34,140.28,12.32326026]
[1763652753110,12.32326026,140.32,140.27,12.32326026]
[1763652753314,14.06326026,140.31,140.22,0.66]
[1763652753525,14.06326026,140.31,140.26,12.32326026]
[1763652753837,0.68,140.31,140.27,22.11208795]
[1763652754055,0.68,140.33,140.29,22.11208795]
[1763652754218,0.68,140.33,140.26,1.74]
[1763652754219,13.00326026,140.33,140.27,22.11208795]
[1763652754416,12.32326026,140.32,140.27,22.11208795]
[1763652754624,20.13014047,140.32,140.27,19.45226878]
[1763652754821,0.68,140.31,140.28,9.78882769]
[1763652755046,12.32326026,140.34,140.29,12.32326026]
[1763652755248,0.68,140.34,140.31,12.32326026]
[1763652755416,0.68,140.33,140.31,9.78882769]
[1763652755616,12.32326026,140.32,140.26,19.45273965]
[1763652755938,1.74,140.31,140.27,9.78882769]
[1763652756114,14.06326026,140.31,140.27,9.78882769]
[1763652756314,0.68,140.3,140.27,9.78882769]
[1763652756747,7.80791896,140.3,140.24,9.78882769]
[1763652756958,7.12791896,140.3,140.26,12.32326026]
[1763652757161,0.68,140.29,140.26,12.32326026]
[1763652757743,12.32326026,140.28,140.18,0.66]
[1763652757971,30.44422026,140.26,140.2,12.32326026]
[1763652758179,30.44422026,140.26,140.18,9.78882769]
[1763652758180,12.32326026,140.25,140.18,9.78882769]
[1763652758363,12.32326026,140.24,140.18,12.32326026]
[1763652758546,1.74,140.23,140.19,12.32326026]
[1763652758877,1.74,140.23,140.17,7.13418461]
[1763652758878,2.42,140.23,140.18,9.78882769]
[1763652759042,2.42,140.23,140.2,22.11208795]
[1763652759243,0.68,140.22,140.13,0.86]
[1763652759451,0.68,140.22,140.14,24.97502497]
[1763652759452,13.00326026,140.22,140.14,24.97502497]
[1763652759655,13.00326026,140.22,140.17,12.32326026]
[1763652759874,0.68,140.21,140.17,12.32326026]
[1763652760276,0.68,140.21,140.13,12.52326026]
[1763652760277,12.32326026,140.18,140.13,12.52326026]
[1763652760577,1.74,140.17,140.14,12.32326026]
[1763652760777,12.32326026,140.16,140.13,0.2]
[1763652760954,1.74,140.15,140.13,0.2]
[1763652761155,12.32326026,140.14,140.13,0.2]
[1763652761360,13.00326026,140.14,140.13,0.2]
[1763652762197,18.12096,140.17,140.13,0.2]
[1763652762401,30.44422026,140.14,140.04,0.66]
[1763652762593,30.44422026,140.14,140.0,16.05172326]
[1763652762594,18.12096,140.14,140.06,12.32326026]
[1763652762809,20.13980639,140.13,140.08,12.32326026]
[1763652762965,7.1358111,140.14,140.1,12.32326026]
[1763652763170,2.42,140.14,140.1,12.32326026]
[1763652763373,0.68,140.13,140.1,9.78882769]
[1763652763668,25.25627028,140.15,140.11,22.11208795]
[1763652763669,1.74,140.15,140.11,22.11208795]
[1763652763989,1.74,140.15,140.12,12.32326026]
[1763652764165,2.42,140.15,140.12,12.32326026]
[1763652764896,2.42,140.15,140.12,9.78882769]
[1763652765390,1.74,140.15,140.12,9.78882769]
[1763652765694,0.68,140.14,140.1,12.32326026]
[1763652766766,7.81616187,140.14,140.1,12.32326026]
[1763652766990,0.68,140.14,140.1,12.32326026]
[1763652767194,0.68,140.14,140.1,19.46101684]
[1763652767692,0.68,140.14,140.1,12.32326026]
[1763652767894,20.13802781,140.16,140.11,22.11208795]
[1763652768093,1.74,140.15,140.12,12.32326026]
[1763652768290,14.74326026,140.15,140.1,19.46081753]
[1763652768476,0.68,140.14,140.1,12.32326026]
[1763652768792,25.25765605,140.13,140.08,16.86702689]
[1763652768979,2.42,140.12,140.08,16.86702689]
[1763652769504,1.74,140.12,140.09,7.0781992]
[1763652770111,2.42,140.12,140.09,7.0781992]
[1763652770977,9.55674455,140.12,140.08,9.78882769]
[1763652771386,0.72,140.11,140.08,16.86702689]
[1763652771709,0.72,140.11,140.08,7.0781992]
[1763652771879,0.72,140.11,140.07,7.0781992]
[1763652772303,7.7981992,140.11,140.03,0.72]
[1763652772502,0.72,140.1,140.07,7.0781992]
[1763652772821,1.74,140.09,140.07,7.0781992]
[1763652773009,2.46,140.09,140.07,7.0781992]
[1763652773199,9.59831149,140.09,140.07,7.0781992]
[1763652773401,7.0781992,140.12,140.07,7.0781992]
[1763652773603,20.58096,140.11,140.08,7.0781992]
[1763652773901,20.58096,140.11,140.07,9.78882769]
[1763652773902,20.58096,140.11,140.07,7.0781992]
[1763652774206,0.72,140.1,140.07,7.0781992]
[1763652776395,7.85785198,140.1,140.07,7.0781992]
[1763652776709,0.72,140.1,140.07,7.0781992]
[1763652776896,26.99834547,140.11,140.07,14.21740839]
[1763652777096,27.71834547,140.11,140.07,14.21740839]
[1763652777494,0.72,140.11,140.08,16.86702689]
[1763652777816,2.46,140.11,140.08,16.86702689]
[1763652778313,7.13706667,140.12,140.09,7.0781992]
[1763652778314,1.74,140.12,140.09,7.0781992]
[1763652778685,1.74,140.12,140.1,7.0781992]
[1763652778911,1.74,140.12,140.09,7.0781992]
[1763652779113,1.74,140.14,140.11,7.0781992]
[1763652779292,2.46,140.14,140.1,16.86702689]
[1763652779688,9.5959691,140.14,140.1,16.86702689]
[1763652780015,9.5959691,140.14,140.1,9.78882769]
[1763652780214,7.0781992,140.12,140.07,7.0781992]
[1763652780517,0.72,140.13,140.02,0.72]
[1763652780518,26.9391592,140.11,140.05,7.0781992]
[1763652780718,26.9391592,140.11,140.0,7.14285461]
[1763652780719,7.0781992,140.07,140.0,7.14285461]
[1763652781020,8.8181992,140.06,140.0,7.0781992]
[1763652781190,8.8181992,140.06,139.98,0.2]
[1763652781191,7.0781992,140.04,139.98,0.2]
[1763652781390,2.46,140.03,139.98,0.2]
[1763652781597,14.22156658,139.99,139.98,0.2]
[1763652781797,1.74,139.99,139.98,0.2]
[1763652782011,1.74,140.0,139.98,7.2781992]
[1763652782317,2.46,140.0,139.98,0.2]
[1763652783021,2.46,140.0,139.98,7.2781992]
[1763652783022,1.74,140.0,139.98,7.2781992]
[1763652783312,2.46,140.0,139.98,0.2]
[1763652783514,1.74,140.0,139.98,0.2]
[1763652784020,7.7981992,139.99,139.98,0.2]
[1763652784225,7.7981992,139.99,139.94,0.2]
[1763652784427,18.12096,139.96,139.94,0.2]
[1763652784723,1.74,139.99,139.95,7.0781992]
[1763652784924,20.58096,139.99,139.95,7.0781992]
[1763652785430,20.58096,139.99,139.94,0.2]
[1763652785431,7.0781992,139.96,139.94,0.2]
[1763652785610,1.74,139.95,139.94,0.2]
[1763652786324,16.68360827,139.95,139.94,0.2]
[1763652786714,7.0781992,139.98,139.94,0.2]
[1763652786910,7.0781992,139.96,139.94,0.2]
[1763652787228,7.0781992,139.96,139.94,17.06702689]
[1763652787229,1.74,139.96,139.94,17.06702689]
[1763652787805,0.72,140.01,139.95,7.7981992]
[1763652788009,8.8181992,140.0,139.95,7.0781992]
[1763652788331,0.72,139.99,139.95,7.0781992]
[1763652788533,1.74,140.0,139.95,7.0781992]
[1763652788731,2.46,139.99,139.94,7.34582777]
[1763652788939,9.5381992,139.99,139.94,7.2781992]
[1763652789106,2.46,139.99,139.94,0.92]
[1763652789437,2.46,139.99,139.95,7.0781992]
[1763652789636,0.72,139.98,139.95,7.0781992]
[1763652789840,7.14438808,139.97,139.94,0.2]
[1763652790203,2.46,139.96,139.94,0.2]
[1763652790617,1.74,139.96,139.94,0.2]
[1763652791412,0.72,139.95,139.94,0.2]
[1763652791651,1.74,139.96,139.94,0.2]
[1763652791857,9.60491541,139.96,139.94,0.2]
[1763652792064,7.7981992,139.95,139.94,0.2]
[1763652792246,18.84096,139.95,139.93,0.2]
[1763652792451,7.7981992,139.94,139.93,0.2]
[1763652792970,1.74,139.94,139.93,0.2]
[1763652793329,9.5381992,139.94,139.93,1e-08]
[1763652793668,18.12096,139.92,139.91,0.2]
[1763652793872,33.0661003,139.92,139.91,0.2]
[1763652794165,18.12096,139.92,139.91,0.2]
[1763652794341,25.2679011,139.92,139.91,0.2]
[1763652794545,33.0661003,139.92,139.91,0.2]
[1763652795771,33.0661003,139.92,139.91,1e-08]
[1763652795939,49.93312719,139.92,139.91,1e-08]
[1763652796133,67.80047996,139.92,139.86,0.2]
[1763652796349,67.80047996,139.92,139.79,14.43176532]
[1763652796350,7.0781992,139.87,139.79,14.43176532]
[1763652796546,7.0781992,139.84,139.79,0.2]
[1763652796755,1.74,139.86,139.81,7.0781992]
[1763652796756,1.74,139.83,139.81,7.0781992]
[1763652796973,7.0781992,139.86,139.81,7.0781992]
[1763652797188,7.7981992,139.86,139.81,7.7981992]
[1763652797472,7.0781992,139.83,139.8,0.2]
[1763652797677,1.74,139.82,139.8,0.2]
[1763652797848,8.89217615,139.82,139.8,0.2]
[1763652798056,1.74,139.82,139.8,0.2]
[1763652798241,18.84096,139.86,139.8,8.07306543]
[1763652798436,8.8181992,139.85,139.8,8.07306543]
[1763652798963,8.8181992,139.85,139.8,17.14188172]
[1763652799172,9.5381992,139.85,139.8,8.07305403]
[1763652799380,9.5381992,139.84,139.8,0.2]
[1763652799957,18.12096,139.81,139.8,0.2]
[1763652800158,19.86096,139.81,139.8,0.2]
[1763652800358,1.74,139.82,139.8,0.2]
[1763652801079,8.8181992,139.82,139.8,0.2]
[1763652801254,9.4881992,139.82,139.8,0.2]
[1763652801574,9.4881992,139.82,139.8,15.1211866]
[1763652801575,1.74,139.82,139.8,15.1211866]
[1763652801778,18.12096,139.84,139.81,7.0781992]
[1763652801779,1.74,139.84,139.81,7.0781992]
[1763652801982,1.74,139.84,139.81,17.55702689]
[1763652802287,1.74,139.84,139.81,24.70945619]
[1763652802444,0.67,139.91,139.83,16.86702689]
[1763652802784,1.74,139.9,139.86,7.0781992]
[1763652802945,8.8181992,139.9,139.85,7.0781992]
[1763652803147,8.8181992,139.9,139.85,9.78882769]
[1763652803347,7.7481992,139.89,139.84,7.0781992]
[1763652803569,7.7481992,139.89,139.84,9.78882769]
[1763652803888,7.7481992,139.88,139.83,7.0781992]
[1763652804179,8.8181992,139.87,139.82,7.0781992]
[1763652804345,9.4881992,139.87,139.82,7.7681992]
[1763652805161,1.74,139.87,139.83,17.55702689]
[1763652805367,1.74,139.89,139.85,7.0781992]
[1763652805657,9.78882769,139.96,139.85,7.0781992]
[1763652805658,0.67,139.93,139.87,7.0781992]
[1763652805977,14.22595217,139.91,139.86,7.0781992]
[1763652806342,7.7481992,139.9,139.85,7.0781992]
[1763652806542,1.74,139.89,139.85,24.01753778]
[1763652806771,1.74,139.89,139.86,7.0781992]
[1763652806985,1.74,139.89,139.85,16.86702689]
[1763652807182,1.74,139.89,139.85,9.78882769]
[1763652807377,0.67,139.88,139.84,7.0781992]
[1763652807562,8.8181992,139.89,139.84,7.0781992]
[1763652807763,2.41,139.89,139.85,7.0781992]
[1763652808189,9.55890527,139.89,139.85,7.0781992]
[1763652808401,9.55890527,139.89,139.85,6.06721219]
[1763652808601,18.12096,139.91,139.86,7.7681992]
[1763652808898,0.67,139.97,139.9,7.0781992]
[1763652809092,1.74,139.96,139.92,7.0781992]
[1763652809272,7.7381992,139.95,139.9,7.0781992]
[1763652809601,0.66,139.95,139.91,7.0781992]
[1763652809808,0.66,139.97,139.93,7.0781992]
[1763652809968,1.74,139.96,139.93,7.0781992]
[1763652810690,1.74,139.96,139.9,9.78882769]
[1763652810691,0.66,139.95,139.9,9.78882769]
[1763652810993,1.74,139.94,139.92,7.0781992]
[1763652811195,1.74,139.95,139.93,7.0781992]
[1763652811788,1.74,139.96,139.92,7.0781992]
[1763652812192,0.66,139.95,139.91,7.0781992]
[1763652812766,7.80548269,139.95,139.91,7.0781992]
[1763652812966,7.80548269,139.95,139.82,2.71520525]
[1763652812967,25.1991592,139.92,139.85,0.69]
[1763652813270,25.1991592,139.92,139.82,0.69]
[1763652813271,7.0781992,139.89,139.82,0.69]
[1763652813493,8.8181992,139.88,139.82,7.0781992]
[1763652813669,7.0781992,139.87,139.82,7.0781992]
[1763652813994,7.0781992,139.86,139.81,7.0781992]
[1763652814224,8.89095582,139.85,139.81,7.0781992]
[1763652814382,8.89095582,139.85,139.81,14.9206623]
[1763652814586,1.74,139.85,139.81,14.9206623]
[1763652814785,27.42686002,139.85,139.81,7.0781992]
[1763652815005,9.55056399,139.85,139.81,7.0781992]
[1763652815214,8.89056399,139.85,139.81,7.7681992]
[1763652815413,0.66,139.84,139.8,0.2]
[1763652815597,7.0781992,139.83,139.8,0.2]
[1763652815914,19.86096,139.82,139.8,0.2]
[1763652816136,0.66,139.81,139.8,0.2]
[1763652816290,0.66,139.81,139.77,0.2]
[1763652816291,18.12096,139.78,139.77,0.2]
[1763652816490,26.9391592,139.78,139.77,0.2]
[1763652816708,27.5991592,139.78,139.77,0.2]
[1763652817218,27.5991592,139.78,139.71,0.2]
[1763652817423,7.0781992,139.74,139.71,0.2]
[1763652817639,1.74,139.73,139.71,0.2]
[1763652817809,1.74,139.73,139.71,0.89]
[1763652818009,1.74,139.75,139.72,17.55702689]
[1763652818209,1.74,139.75,139.71,0.2]
[1763652818416,0.66,139.74,139.71,0.2]
[1763652818634,25.8591592,139.77,139.72,7.0781992]
[1763652818833,0.66,139.76,139.72,7.0781992]
[1763652819037,1.74,139.75,139.72,17.55702689]
[1763652819334,8.8181992,139.75,139.71,0.2]
[1763652819525,9.4781992,139.75,139.71,0.2]
[1763652819921,1.74,139.75,139.71,0.89]
[1763652820241,1.74,139.75,139.71,7.2781992]
[1763652820441,1.74,139.75,139.73,7.0781992]
[1763652820813,25.27558575,139.77,139.72,7.7681992]
[1763652821115,18.12096,139.77,139.72,7.7681992]
[1763652821314,7.0781992,139.75,139.71,0.2]
[1763652821533,0.66,139.74,139.71,0.2]
[1763652821745,1.74,139.73,139.71,0.2]
[1763652821959,0.66,139.75,139.71,7.2781992]
[1763652822249,1.74,139.73,139.71,15.12586118]
[1763652822452,1.74,139.73,139.72,7.7681992]
[1763652822654,1.74,139.75,139.72,7.7681992]
[1763652822953,7.15000715,139.86,139.75,9.78882769]
[1763652823163,7.0781992,139.83,139.78,7.0781992]
[1763652823448,7.0781992,139.81,139.76,7.0781992]
[1763652823623,0.66,139.8,139.76,7.0781992]
[1763652823822,1.74,139.79,139.75,9.78882769]
[1763652824018,1.74,139.79,139.73,9.78882769]
[1763652824019,7.0781992,139.78,139.73,9.78882769]
[1763652824246,26.9391592,139.79,139.72,7.15702496]
[1763652824452,26.9391592,139.79,139.74,7.0781992]
[1763652824747,52.63683889,139.79,139.73,0.69]
[1763652824931,52.63683889,139.79,139.72,7.0781992]
[1763652824932,7.0781992,139.77,139.72,7.0781992]
[1763652825135,8.8181992,139.76,139.71,7.2781992]
[1763652825480,1.74,139.76,139.72,7.0781992]
[1763652825658,1.74,139.76,139.72,7.7681992]
[1763652825864,43.15863969,139.79,139.74,7.0781992]
[1763652825865,32.35287008,139.79,139.74,7.0781992]
[1763652826158,1.74,139.76,139.74,7.7681992]
[1763652826346,1.74,139.77,139.75,14.92381813]
[1763652827162,1.74,139.78,139.76,0.69]
[1763652827335,1.74,139.78,139.76,7.0781992]
[1763652827536,1.74,139.78,139.76,7.7681992]
[1763652827939,1.74,139.78,139.74,7.0781992]
[1763652828252,27.01537279,139.78,139.73,7.0781992]
[1763652828428,27.01537279,139.78,139.74,7.0781992]
[1763652828628,19.86096,139.78,139.74,7.0781992]
[1763652828934,18.12096,139.78,139.76,7.0781992]
[1763652829124,1.74,139.79,139.77,12.37853675]
[1763652829327,1.74,139.79,139.75,10.47882769]
[1763652829328,1.74,139.79,139.76,12.37853675]
[1763652829523,2.24907472,139.79,139.75,12.37853675]
[1763652829839,2.24907472,139.79,139.76,12.37853675]
[1763652830044,2.24907472,139.79,139.75,12.37853675]
[1763652830225,7.15409929,139.78,139.74,12.37853675]
[1763652830758,1.74,139.77,139.75,12.37853675]
[1763652831129,1.74,139.77,139.76,13.03853675]
[1763652831562,1.74,139.77,139.76,12.37853675]
[1763652832684,1.74,139.77,139.76,20.19365981]
[1763652832854,1.74,139.77,139.76,13.03853675]
[1763652834279,8.89360037,139.79,139.76,13.03853675]
[1763652834441,1.74,139.79,139.76,13.03853675]
[1763652834862,8.89361024,139.79,139.76,13.03853675]
[1763652835038,1.74,139.79,139.76,13.03853675]
[1763652835460,1.74,139.79,139.76,20.1936288]
[1763652836063,1.74,139.79,139.76,13.03853675]
[1763652836457,8.89358836,139.79,139.76,20.19361506]
[1763652836665,1.74,139.79,139.76,20.19361506]
[1763652836865,1.74,139.79,139.76,13.03853675]
[1763652837064,13.06853675,139.78,139.72,12.37853675]
[1763652837268,12.37853675,139.77,139.72,12.37853675]
[1763652837574,1.74,139.76,139.74,12.37853675]
[1763652837766,1.74,139.78,139.75,12.37853675]
[1763652838589,8.89444625,139.78,139.74,12.37853675]
[1763652838874,0.69,139.77,139.73,12.37853675]
[1763652839043,12.37853675,139.75,139.71,0.2]
[1763652839247,1.74,139.74,139.71,0.2]
[1763652839681,0.69,139.73,139.71,0.2]
[1763652840052,1.74,139.74,139.71,0.2]
[1763652840459,0.69,139.73,139.71,0.2]
[1763652840697,0.69,139.78,139.71,0.86]
[1763652840976,14.80853675,139.77,139.72,12.37853675]
[1763652841154,13.06853675,139.76,139.71,12.57853675]
[1763652841351,0.69,139.76,139.71,7.35749933]
[1763652841581,1.74,139.77,139.75,12.37853675]
[1763652842366,1.74,139.77,139.73,13.03853675]
[1763652842570,19.53417181,139.75,139.71,0.2]
[1763652842889,12.37853675,139.72,139.71,0.2]
[1763652843050,13.06853675,139.72,139.71,0.2]
[1763652843467,31.18949675,139.72,139.63,0.66]
[1763652843666,12.37853675,139.68,139.63,20.2002994]
[1763652843869,1.74,139.67,139.63,9.78882769]
[1763652844046,1.74,139.67,139.63,0.66]
[1763652844251,12.37853675,139.64,139.59,13.03853675]
[1763652844485,18.12096,139.68,139.63,12.37853675]
[1763652844670,15.24746269,139.8,139.67,12.37853675]
[1763652844671,0.69,139.73,139.67,12.37853675]
[1763652844985,1.74,139.74,139.7,12.37853675]
[1763652845146,1.74,139.74,139.71,12.37853675]
[1763652845349,13.06853675,139.73,139.68,12.37853675]
[1763652845746,0.69,139.72,139.68,12.37853675]
[1763652845952,14.11853675,139.74,139.69,13.03853675]
[1763652846152,0.69,139.73,139.69,13.03853675]
[1763652846549,7.15717148,139.72,139.68,9.78882769]
[1763652846781,0.69,139.73,139.69,12.37853675]
[1763652847255,0.69,139.73,139.69,13.03853675]
[1763652847454,0.69,139.73,139.69,12.37853675]
[1763652847675,0.69,139.73,139.69,13.03853675]
[1763652847887,0.69,139.73,139.7,12.37853675]
[1763652848178,7.84686866,139.73,139.69,12.37853675]
[1763652848576,0.69,139.73,139.69,12.37853675]
[1763652848751,21.27491191,139.74,139.69,13.03853675]
[1763652848954,21.96491191,139.74,139.69,13.03853675]
[1763652849255,21.96491191,139.74,139.69,12.37853675]
[1763652849256,0.69,139.73,139.69,12.37853675]
[1763652849860,18.12096,139.76,139.71,12.37853675]
[1763652849861,2.43,139.76,139.71,12.37853675]
[1763652850086,18.12096,139.77,139.71,12.37853675]
[1763652850087,0.69,139.79,139.75,12.37853675]
[1763652850297,12.37853675,139.78,139.71,12.18882769]
[1763652850588,37.41788428,139.78,139.73,12.37853675]
[1763652850892,0.69,139.77,139.73,12.37853675]
[1763652851389,2.43,139.77,139.73,12.37853675]
[1763652851996,1.74,139.77,139.73,13.03853675]
[1763652852168,1.74,139.77,139.76,12.37853675]
[1763652852364,9.78882769,139.84,139.76,12.37853675]
[1763652852365,0.69,139.83,139.76,13.03853675]
[1763652852569,7.15107837,139.84,139.79,12.37853675]
[1763652852763,1.74,139.83,139.8,12.37853675]
[1763652852963,0.69,139.85,139.81,12.37853675]
[1763652853166,18.12096,139.83,139.81,12.37853675]
[1763652853470,1.74,139.84,139.82,12.37853675]